fUST/lending_fUST_20250225
["ID","MTS","AMOUNT","RATE_DAILY","PERIOD"]
[354339351,1740433834390,-500.0,0.00013863,2]
[354339352,1740433834541,-256.52580552,0.00013863,2]
[354339376,1740433837825,-59.51801516,0.00013863,2]
[354339692,1740433845654,-500.0,0.00013698,2]
[354339693,1740433845663,-500.0,0.0001378,2]
[354339694,1740433845673,-183.95617932,0.00013863,2]
[354339695,1740433845682,-500.0,0.00013863,2]
[354339696,1740433845691,-290.47854426,0.00013863,2]
[354339697,1740433845700,-171.59,0.00013863,2]
[354339699,1740433845709,-500.0,0.00013863,2]
[354339701,1740433845718,-771.29,0.00013863,2]
[354339703,1740433845727,-258.39603602,0.00013863,2]
[354339705,1740433845736,-1387.22,0.00013863,2]
[354339706,1740433845745,-500.0,0.00013863,2]
[354339708,1740433845754,-500.0,0.00013863,2]
[354339710,1740433845763,-500.0,0.00013863,2]
[354339711,1740433845773,-500.0,0.00013863,2]
[354339713,1740433845783,-500.0,0.00013863,2]
[354339715,1740433845791,-9097.0692604,0.00013863,2]
[354339719,1740433845840,-2344.29010687,0.00013863,2]
[354339720,1740433845851,-365.12600545,0.00013863,2]
[354339855,1740433855337,300.0,0.00010959,2]
[354339856,1740433947384,4.72483002,0.0001325,2]
[354339857,1740434750083,-524.96066402,0.00010367,2]
[354339858,1740434757087,-76.05008596,0.00010367,2]
[354339859,1740434757110,-143.83456369,0.00010472,2]
[354339860,1740434833089,-1500.0,0.00010472,2]
[354339861,1740434833120,-1500.0,0.00011842,2]
[354339862,1740434833143,-500.0,0.00011958,2]
[354339863,1740434833168,-300.0,0.0001227,2]
[354339864,1740434833191,-16607.22044743,0.00012271,2]
[354339865,1740434838088,-934.39164527,0.00012271,2]
[354339866,1740434843235,-712.52183564,0.00012271,2]
[354339867,1740434933313,200.756373,9.041e-05,2]
[354339869,1740434950169,-1200.0,0.00010472,2]
[354339870,1740434950191,-1200.0,0.00011842,2]
[354339871,1740434950213,-6645.86607166,0.00012271,2]
[354339872,1740434950233,-418.63220664,0.00012587,2]
[354339873,1740434952102,-81.36779336,0.00012587,2]
[354339874,1740434952122,-1200.0,0.00013212,2]
[354339875,1740434952144,-300.0,0.00013232,2]
[354339876,1740434952164,-557.4308118,0.00013233,2]
[354339877,1740434952183,-154.8331553,0.00013233,2]
[354339878,1740434952203,-153.0,0.00013233,2]
[354339879,1740434952222,-153.0,0.00013233,2]
[354339880,1740434952242,-307.9769127,0.00013233,2]
[354339881,1740434952265,-557.4308118,0.00013233,2]
[354339882,1740434952286,-495.27516998,0.0001325,2]
[354339883,1740434952305,-153.0,0.000133,2]
[354339884,1740434952325,-153.0,0.000133,2]
[354339885,1740434952346,-557.4308118,0.000133,2]
[354339886,1740434952366,-557.4308118,0.000133,2]
[354339887,1740434952386,-557.4308118,0.00013378,2]
[354339888,1740434997469,2586.19798705,0.00013518,2]
[354339995,1740435032393,-217.49955704,0.00013598,2]
[354339997,1740435032403,-3000.0,0.00013598,2]
[354339998,1740435032413,-153.0,0.000136,2]
[354340000,1740435032424,-153.0,0.000136,2]
[354340002,1740435032434,-557.4308118,0.000136,2]
[354340004,1740435032444,-300.0,0.00013601,2]
[354340006,1740435032455,-500.0,0.00013673,2]
[354340008,1740435032465,-2.10679343,0.00013673,2]
[354340010,1740435032477,-377.34255271,0.00013673,2]
[354340012,1740435032489,-120.55065386,0.00013673,2]
[354340014,1740435032499,-164.27472602,0.00013673,2]
[354340016,1740435032508,-501.18039987,0.00013673,2]
[354340017,1740435032518,-537.36902736,0.00013673,2]
[354340019,1740435032528,-500.3286748,0.00013673,2]
[354340021,1740435032537,-176.09205952,0.00013673,2]
[354340023,1740435032549,-500.0,0.00013673,2]
[354340025,1740435032559,-373.71474472,0.00013673,2]
[354340027,1740435032568,-500.0,0.00013673,2]
[354340029,1740435032578,-478.11359212,0.00013673,2]
[354340031,1740435032588,-500.0,0.00013673,2]
[354340033,1740435032598,-626.10567238,0.00013673,2]
[354340035,1740435032608,-501.27063665,0.00013673,2]
[354340037,1740435032617,-151.88960862,0.00013673,2]
[354340039,1740435032627,-153.33247547,0.00013673,2]
[354340041,1740435032638,-502.73466769,0.00013673,2]
[354340043,1740435032648,-500.0,0.00013673,2]
[354340045,1740435032659,-151.0,0.0001369,2]
[354340047,1740435032668,-500.0,0.00013697,2]
[354340049,1740435032678,-500.0,0.00013697,2]
[354340051,1740435032688,-500.0,0.00013697,2]
[354340053,1740435032698,-454.66120443,0.00013697,2]
[354340055,1740435032708,-500.0,0.00013697,2]
[354340057,1740435032719,-500.0,0.00013697,2]
[354340059,1740435032740,-500.0,0.00013697,2]
[354340061,1740435032752,-500.0,0.00013697,2]
[354340063,1740435032763,-500.0,0.00013697,2]
[354340065,1740435032774,-500.0,0.00013697,2]
[354340067,1740435032787,-283.73231711,0.00013697,2]
[354340069,1740435032797,-500.0,0.00013697,2]
[354340071,1740435032813,-500.0,0.00013697,2]
[354340073,1740435032823,-500.0,0.00013697,2]
[354340075,1740435032833,-500.0,0.00013697,2]
[354340077,1740435032844,-500.0,0.00013697,2]
[354340079,1740435032857,-500.0,0.00013697,2]
[354340081,1740435032868,-2205.71720073,0.00013698,5]
[354340084,1740435032882,-16169.2808601,0.00013698,5]
[354340086,1740435032892,-1411.14630113,0.00013698,5]
[354340088,1740435032902,-503.63709508,0.00013698,2]
[354340090,1740435032912,-500.0,0.00013698,2]
[354340092,1740435032923,-500.0,0.00013698,2]
[354340094,1740435032932,-500.0,0.00013698,2]
[354340096,1740435032943,-500.0,0.00013698,2]
[354340098,1740435032954,-579.38244099,0.00013698,2]
[354340100,1740435032966,-500.0,0.00013698,2]
[354340102,1740435032976,-505.82746448,0.00013698,2]
[354340104,1740435032986,-507.95836277,0.00013698,2]
[354340106,1740435032997,-500.0,0.00013698,2]
[354340108,1740435033007,-513.78827645,0.00013698,2]
[354340110,1740435033016,-500.0,0.00013698,2]
[354340112,1740435033026,-596.827152,0.00013698,2]
[354340114,1740435033037,-500.0,0.00013698,2]
[354340117,1740435033052,-500.41883245,0.00013698,2]
[354340119,1740435033066,-500.0,0.00013698,2]
[354340121,1740435033080,-500.0,0.00013698,2]
[354340124,1740435033094,-500.0,0.00013698,2]
[354340126,1740435033106,-500.0,0.00013698,2]
[354340128,1740435033118,-500.95597778,0.00013698,2]
[354340130,1740435033132,-500.0,0.00013698,2]
[354340133,1740435033145,-500.65195926,0.00013698,2]
[354340135,1740435033159,-500.0,0.00013698,2]
[354340137,1740435033173,-500.0,0.00013698,2]
[354340140,1740435033187,-503.83052297,0.00013698,2]
[354340142,1740435033200,-500.0,0.00013698,2]
[354340144,1740435033213,-500.0,0.00013698,2]
[354340146,1740435033226,-475.42481455,0.00013698,2]
[354340147,1740435033239,-500.0,0.00013698,2]
[354340149,1740435033253,-500.0,0.00013698,2]
[354340151,1740435033266,-500.0,0.00013698,2]
[354340153,1740435033279,-500.0,0.00013698,2]
[354340154,1740435033292,-504.39476211,0.00013698,2]
[354340156,1740435033305,-500.0,0.00013698,2]
[354340158,1740435033318,-447.67448452,0.00013698,2]
[354340159,1740435033331,-500.0,0.00013698,2]
[354340161,1740435033343,-233.91922336,0.00013698,2]
[354340163,1740435033357,-497.16,0.00013698,2]
[354340164,1740435033369,-500.0,0.00013698,2]
[354340166,1740435033381,-500.0,0.00013698,2]
[354340168,1740435033395,-500.0,0.00013698,2]
[354340169,1740435033407,-504.03609279,0.00013698,2]
[354340171,1740435033421,-500.0,0.00013698,2]
[354340172,1740435033434,-500.0,0.00013698,2]
[354340174,1740435033448,-500.0,0.00013698,2]
[354340176,1740435033462,-500.0,0.00013698,2]
[354340178,1740435033476,-500.0,0.00013698,2]
[354340179,1740435033490,-500.0,0.00013698,2]
[354340181,1740435033504,-500.0,0.00013698,2]
[354340183,1740435033518,-500.0,0.00013698,2]
[354340185,1740435033531,-500.0,0.00013698,2]
[354340187,1740435033542,-326.22931141,0.00013698,2]
[354340189,1740435033563,-173.77068859,0.00013698,2]
[354340191,1740435033575,-500.0,0.00013698,2]
[354340192,1740435033589,-500.0,0.00013698,2]
[354340194,1740435033603,-500.0,0.00013698,2]
[354340196,1740435033617,-500.0,0.00013698,2]
[354340198,1740435033631,-500.0,0.00013698,2]
[354340199,1740435033642,-500.0,0.00013698,2]
[354340201,1740435033655,-515.55813512,0.00013698,2]
[354340203,1740435033668,-500.0,0.00013698,2]
[354340205,1740435033681,-500.0,0.00013698,2]
[354340207,1740435033695,-263.04342653,0.00013698,2]
[354340208,1740435033710,-236.95657347,0.00013698,2]
[354340210,1740435033723,-500.0,0.00013698,2]
[354340212,1740435033735,-624.92639399,0.00013698,2]
[354340214,1740435033746,-500.0,0.00013698,2]
[354340215,1740435033759,-500.0,0.00013698,2]
[354340217,1740435033771,-500.0,0.00013698,2]
[354340219,1740435033784,-351.20276825,0.00013698,2]
[354340548,1740435038089,-19601.91606613,0.00013596,2]
[354340551,1740435038101,-148.79723175,0.00013698,2]
[354340554,1740435038112,-500.0,0.00013698,2]
[354340557,1740435038122,-632.28730592,0.00013698,2]
[354340560,1740435038131,-500.0,0.00013698,2]
[354340562,1740435038141,-500.0,0.00013698,2]
[354340564,1740435038152,-500.0,0.00013698,2]
[354340566,1740435038162,-500.0,0.00013698,2]
[354340568,1740435038172,-500.0,0.00013698,2]
[354340573,1740435038348,-500.0,0.00013698,2]
[354340574,1740435038360,-513.00845363,0.00013698,2]
[354340575,1740435038370,-500.0,0.00013698,2]
[354340576,1740435038380,-503.21458797,0.00013698,2]
[354340577,1740435038390,-500.0,0.00013698,2]
[354340578,1740435038400,-500.0,0.00013698,2]
[354340579,1740435038410,-500.0,0.00013698,2]
[354340580,1740435038420,-500.0,0.00013698,2]
[354340581,1740435038430,-500.0,0.00013698,2]
[354340582,1740435038440,-500.0,0.00013698,2]
[354340583,1740435038450,-555.57721339,0.00013698,2]
[354340584,1740435038461,-500.0,0.00013698,2]
[354340585,1740435038471,-500.0,0.00013698,2]
[354340586,1740435038482,-500.0,0.00013698,2]
[354340587,1740435038491,-500.0,0.00013698,2]
[354340588,1740435038501,-500.0,0.00013698,2]
[354340589,1740435038511,-500.0,0.00013698,2]
[354340590,1740435038521,-500.0,0.00013698,2]
[354340591,1740435038531,-500.0,0.00013698,2]
[354340592,1740435038541,-500.0,0.00013698,2]
[354340593,1740435038552,-424.72401432,0.00013698,2]
[354340594,1740435038563,-500.93600384,0.00013698,2]
[354340595,1740435038573,-500.0,0.00013698,2]
[354340596,1740435038583,-500.0,0.00013698,2]
[354340597,1740435038594,-500.0,0.00013698,2]
[354340598,1740435038605,-500.0,0.00013698,2]
[354340599,1740435038616,-501.00128565,0.00013698,2]
[354340600,1740435038627,-500.0,0.00013698,2]
[354340601,1740435038638,-500.0,0.00013698,2]
[354340603,1740435038649,-500.0,0.00013698,2]
[354340605,1740435038659,-525.60833296,0.00013698,2]
[354340607,1740435038671,-500.0,0.00013698,2]
[354340609,1740435038682,-500.0,0.00013698,2]
[354340611,1740435038692,-500.0,0.00013698,2]
[354340613,1740435038702,-374.49887522,0.00013698,2]
[354340615,1740435038712,-500.0,0.00013698,2]
[354340617,1740435038722,-500.0,0.00013698,2]
[354340619,1740435038733,-501.98321744,0.00013698,2]
[354340621,1740435038743,-500.0,0.00013698,2]
[354340623,1740435038753,-500.0,0.00013698,2]
[354340624,1740435038764,-500.0,0.00013698,2]
[354340625,1740435038773,-500.0,0.00013698,2]
[354340626,1740435038783,-504.9395046,0.00013698,2]
[354340627,1740435038794,-500.0,0.00013698,2]
[354340628,1740435038806,-500.0,0.00013698,2]
[354340629,1740435038818,-500.0,0.00013698,2]
[354340630,1740435038828,-500.0,0.00013698,2]
[354340631,1740435038839,-500.0,0.00013698,2]
[354340632,1740435038851,-500.0,0.00013698,2]
[354340633,1740435038862,-500.0,0.00013698,2]
[354340635,1740435038872,-500.0,0.00013698,2]
[354340637,1740435038884,-500.0,0.00013698,2]
[354340639,1740435038895,-500.0,0.00013698,2]
[354340641,1740435038905,-500.0,0.00013698,2]
[354340642,1740435038916,-500.0,0.00013698,2]
[354340644,1740435038926,-500.0,0.00013698,2]
[354340646,1740435038937,-500.0,0.00013698,2]
[354340648,1740435038947,-500.0,0.00013698,2]
[354340650,1740435038958,-500.0,0.00013698,2]
[354340651,1740435038970,-500.0,0.00013698,2]
[354340653,1740435038981,-500.0,0.00013698,2]
[354340655,1740435038991,-500.0,0.00013698,2]
[354340657,1740435039002,-500.0,0.00013698,2]
[354340659,1740435039012,-500.0,0.00013698,2]
[354340661,1740435039023,-500.0,0.00013698,2]
[354340663,1740435039033,-503.34058286,0.00013698,2]
[354340664,1740435039043,-500.0,0.00013698,2]
[354340666,1740435039053,-500.0,0.00013698,2]
[354340668,1740435039065,-309.95345184,0.00013698,2]
[354340670,1740435039076,-500.0,0.00013698,2]
[354340672,1740435039086,-500.0,0.00013698,2]
[354340673,1740435039097,-500.0,0.00013698,2]
[354340675,1740435039107,-500.0,0.00013698,2]
[354340677,1740435039117,-500.0,0.00013698,2]
[354340678,1740435039127,-414.391,0.00013698,2]
[354340680,1740435039137,-608.79672195,0.00013698,2]
[354340681,1740435039146,-500.0,0.00013698,2]
[354340682,1740435039156,-500.0,0.00013698,2]
[354340683,1740435039166,-500.0,0.00013698,2]
[354340684,1740435039177,-500.0,0.00013698,2]
[354340685,1740435039188,-500.0,0.00013698,2]
[354340686,1740435039199,-500.0,0.00013698,2]
[354340687,1740435039209,-500.0,0.00013698,2]
[354340688,1740435039220,-500.0,0.00013698,2]
[354340689,1740435039230,-500.0,0.00013698,2]
[354340690,1740435039239,-500.0,0.00013698,2]
[354340691,1740435039249,-335.97319954,0.00013698,2]
[354340692,1740435039259,-512.98125807,0.00013698,2]
[354340693,1740435039270,-500.0,0.00013698,2]
[354340694,1740435039281,-500.0,0.00013698,2]
[354340695,1740435039292,-500.0,0.00013698,2]
[354340696,1740435039302,-500.0,0.00013698,2]
[354340697,1740435039312,-500.0,0.00013698,2]
[354340698,1740435039322,-500.0,0.00013698,2]
[354340699,1740435039333,-500.0,0.00013698,2]
[354340700,1740435039343,-500.0,0.00013698,2]
[354340701,1740435039353,-501.14899077,0.00013698,2]
[354340702,1740435039364,-500.0,0.00013698,2]
[354340703,1740435039375,-500.0,0.00013698,2]
[354340704,1740435039384,-500.0,0.00013698,2]
[354340705,1740435039395,-500.0,0.00013698,2]
[354340706,1740435039405,-500.0,0.00013698,2]
[354340708,1740435039416,-500.0,0.00013698,2]
[354340710,1740435039427,-500.0,0.00013698,2]
[354340711,1740435039437,-433.8890098,0.00013698,2]
[354340712,1740435039447,-501.07551732,0.00013698,2]
[354340713,1740435039457,-500.0,0.00013698,2]
[354340714,1740435039467,-500.0,0.00013698,2]
[354340715,1740435039479,-500.0,0.00013698,2]
[354340716,1740435039490,-500.0,0.00013698,2]
[354340717,1740435039501,-500.0,0.00013698,2]
[354340718,1740435039511,-500.0,0.00013698,2]
[354340719,1740435039521,-500.0,0.00013698,2]
[354340720,1740435039531,-500.0,0.00013698,2]
[354340721,1740435039541,-500.0,0.00013698,2]
[354340722,1740435039551,-500.0,0.00013698,2]
[354340723,1740435039561,-500.0,0.00013698,2]
[354340724,1740435039571,-500.0,0.00013698,2]
[354340725,1740435039582,-500.0,0.00013698,2]
[354340726,1740435039592,-500.0,0.00013698,2]
[354340727,1740435039603,-500.0,0.00013698,2]
[354340728,1740435039613,-500.0,0.00013698,2]
[354340729,1740435039623,-500.0,0.00013698,2]
[354340730,1740435039633,-500.0,0.00013698,2]
[354340731,1740435039643,-500.0,0.00013698,2]
[354340735,1740435039652,-500.0,0.00013698,2]
[354340737,1740435039662,-500.0,0.00013698,2]
[354340741,1740435039672,-500.0,0.00013698,2]
[354340743,1740435039683,-500.0,0.00013698,2]
[354340746,1740435039693,-500.0,0.00013698,2]
[354340747,1740435039702,-500.0,0.00013698,2]
[354340748,1740435039712,-500.0,0.00013698,2]
[354340749,1740435039722,-500.0,0.00013698,2]
[354340750,1740435039739,-459.8096676,0.00013698,2]
[354340752,1740435039750,-500.0,0.00013698,2]
[354340754,1740435039760,-500.0,0.00013698,2]
[354340756,1740435039769,-500.0,0.00013698,2]
[354340758,1740435039779,-500.0,0.00013698,2]
[354340759,1740435039793,-500.0,0.00013698,2]
[354340761,1740435039805,-500.0,0.00013698,2]
[354340762,1740435039820,-500.0,0.00013698,2]
[354340763,1740435039832,-500.0,0.00013698,2]
[354340764,1740435039842,-500.0,0.00013698,2]
[354340765,1740435039855,-500.0,0.00013698,2]
[354340766,1740435039868,-500.0,0.00013698,2]
[354340768,1740435039880,-500.0,0.00013698,2]
[354340769,1740435039890,-500.0,0.00013698,2]
[354340770,1740435039900,-500.0,0.00013698,2]
[354340772,1740435039911,-500.0,0.00013698,2]
[354340774,1740435039922,-443.29693061,0.00013698,2]
[354340776,1740435039932,-500.0,0.00013698,2]
[354340778,1740435039942,-500.0,0.00013698,2]
[354340779,1740435039952,-500.0,0.00013698,2]
[354340781,1740435039962,-500.0,0.00013698,2]
[354340783,1740435039973,-500.0,0.00013698,2]
[354340785,1740435039983,-500.0,0.00013698,2]
[354340786,1740435039994,-500.0,0.00013698,2]
[354340787,1740435040005,-500.0,0.00013698,2]
[354340788,1740435040016,-500.0,0.00013698,2]
[354340789,1740435040026,-500.0,0.00013698,2]
[354340790,1740435040036,-500.0,0.00013698,2]
[354340791,1740435040046,-500.0,0.00013698,2]
[354340792,1740435040056,-500.0,0.00013698,2]
[354340793,1740435040066,-500.48170505,0.00013698,2]
[354340794,1740435040075,-500.0,0.00013698,2]
[354340795,1740435040085,-500.0,0.00013698,2]
[354340797,1740435040095,-500.0,0.00013698,2]
[354340799,1740435040105,-500.0,0.00013698,2]
[354340800,1740435040115,-500.0,0.00013698,2]
[354340802,1740435040125,-500.0,0.00013698,2]
[354340804,1740435040135,-500.0,0.00013698,2]
[354340806,1740435040144,-501.13413951,0.00013698,2]
[354340808,1740435040155,-500.0,0.00013698,2]
[354340810,1740435040165,-500.0,0.00013698,2]
[354340812,1740435040174,-500.0,0.00013698,2]
[354340814,1740435040183,-500.0,0.00013698,2]
[354340816,1740435040193,-500.0,0.00013698,2]
[354340818,1740435040203,-500.0,0.00013698,2]
[354340820,1740435040212,-500.0,0.00013698,2]
[354340822,1740435040222,-500.0,0.00013698,2]
[354340824,1740435040231,-500.0,0.00013698,2]
[354340826,1740435040240,-500.0,0.00013698,2]
[354340828,1740435040250,-500.0,0.00013698,2]
[354340830,1740435040259,-500.0,0.00013698,2]
[354340832,1740435040269,-500.0,0.00013698,2]
[354340834,1740435040279,-528.89,0.00013698,2]
[354340836,1740435040288,-414.37904405,0.00013698,2]
[354340838,1740435040298,-18705.71,0.00013698,2]
[354340840,1740435040308,-500.0,0.00013698,2]
[354340842,1740435040318,-500.0,0.00013698,2]
[354340844,1740435040328,-500.0,0.00013698,2]
[354340846,1740435040338,-500.0,0.00013698,2]
[354340848,1740435040348,-500.0,0.00013698,2]
[354340850,1740435040358,-500.0,0.00013698,2]
[354340852,1740435040368,-500.0,0.00013698,2]
[354340854,1740435040379,-500.0,0.00013698,2]
[354340856,1740435040389,-500.0,0.00013698,2]
[354340858,1740435040399,-500.0,0.00013698,2]
[354340860,1740435040408,-500.0,0.00013698,2]
[354340862,1740435040418,-500.0,0.00013698,2]
[354340864,1740435040428,-760.82,0.00013698,2]
[354340866,1740435040437,-500.0,0.00013698,2]
[354340868,1740435040446,-500.0,0.00013698,2]
[354340870,1740435040456,-500.0,0.00013698,2]
[354340872,1740435040466,-829.91,0.00013698,2]
[354340874,1740435040476,-190.34759671,0.00013698,2]
[354340877,1740435040494,-309.65240329,0.00013698,2]
[354340879,1740435040504,-500.0,0.00013698,2]
[354340881,1740435040513,-155.3017436,0.00013698,2]
[354340883,1740435040526,-344.6982564,0.00013698,2]
[354340885,1740435040535,-506.92400394,0.00013698,2]
[354340887,1740435040545,-141.18773966,0.00013698,2]
[354340889,1740435040556,-358.81226034,0.00013698,2]
[354340891,1740435040566,-500.0,0.00013698,2]
[354340893,1740435040576,-500.0,0.00013698,2]
[354340895,1740435040586,-500.0,0.00013698,2]
[354340898,1740435040599,-2969.05,0.00013698,2]
[354340900,1740435040608,-500.0,0.00013698,2]
[354340902,1740435040618,-500.0,0.00013698,2]
[354340904,1740435040627,-500.0,0.00013698,2]
[354340906,1740435040638,-500.0,0.00013698,2]
[354340908,1740435040648,-500.0,0.00013698,2]
[354340910,1740435040658,-1117.19,0.00013698,2]
[354340912,1740435040667,-1117.19,0.00013698,2]
[354340914,1740435040677,-500.0,0.00013698,2]
[354340916,1740435040690,-1117.19,0.00013698,2]
[354340918,1740435040702,-500.0,0.00013698,2]
[354340920,1740435040717,-1117.19,0.00013698,2]
[354340922,1740435040727,-500.0,0.00013698,2]
[354340924,1740435040736,-1117.19,0.00013698,2]
[354340926,1740435040746,-1117.19,0.00013698,2]
[354340928,1740435040757,-1214.05,0.00013698,2]
[354340930,1740435040767,-1117.19,0.00013698,2]
[354340931,1740435040777,-500.0,0.00013698,2]
[354340932,1740435040788,-1117.19,0.00013698,2]
[354340934,1740435040798,-1117.19,0.00013698,2]
[354340936,1740435040817,-500.0,0.00013698,2]
[354340937,1740435040828,-500.0,0.00013698,2]
[354340939,1740435040838,-1117.19,0.00013698,2]
[354340941,1740435040847,-500.0,0.00013698,2]
[354340943,1740435040860,-1117.19,0.00013698,2]
[354340944,1740435040870,-500.0,0.00013698,2]
[354340945,1740435040880,-500.0,0.00013698,2]
[354340946,1740435040890,-500.0,0.00013698,2]
[354340947,1740435040899,-500.0,0.00013698,2]
[354340948,1740435040909,-503.54954374,0.00013698,2]
[354340949,1740435040919,-500.0,0.00013698,2]
[354340950,1740435040929,-500.0,0.00013698,2]
[354340951,1740435040939,-232.82832331,0.00013698,2]
[354340952,1740435040949,-500.0,0.00013698,2]
[354340953,1740435040958,-521.78880961,0.00013698,2]
[354340954,1740435040968,-500.0,0.00013698,2]
[354340955,1740435040980,-500.0,0.00013698,2]
[354340956,1740435040990,-500.0,0.00013698,2]
[354340957,1740435041000,-500.0,0.00013698,2]
[354340958,1740435041011,-500.0,0.00013698,2]
[354340959,1740435041021,-500.0,0.00013698,2]
[354340960,1740435041031,-500.0,0.00013698,2]
[354340961,1740435041041,-504.79438722,0.00013698,2]
[354340962,1740435041051,-500.0,0.00013698,2]
[354340963,1740435041062,-500.0,0.00013698,2]
[354340964,1740435041072,-500.0,0.00013698,2]
[354340965,1740435041082,-500.0,0.00013698,5]
[354340966,1740435041092,-648.5326959,0.00013698,2]
[354340967,1740435041103,-500.0,0.00013698,2]
[354340968,1740435041114,-500.0,0.00013698,2]
[354340969,1740435041125,-500.0,0.00013698,2]
[354340970,1740435041136,-500.0,0.00013698,2]
[354340971,1740435041146,-500.0,0.00013698,2]
[354340972,1740435041156,-500.0,0.00013698,2]
[354340973,1740435041171,-500.0,0.00013698,2]
[354340974,1740435041181,-500.0,0.00013698,2]
[354340975,1740435041191,-500.0,0.00013698,2]
[354340976,1740435041202,-500.0,0.00013698,2]
[354340977,1740435041212,-500.0,0.00013698,2]
[354340978,1740435041222,-3413.72,0.00013698,2]
[354340979,1740435041232,-3413.72,0.00013698,2]
[354340980,1740435041242,-3413.72,0.00013698,2]
[354340981,1740435041251,-3413.72,0.00013698,2]
[354340982,1740435041261,-3413.72,0.00013698,2]
[354340983,1740435041270,-3413.72,0.00013698,2]
[354340984,1740435041280,-3413.72,0.00013698,2]
[354340985,1740435041289,-3413.72,0.00013698,2]
[354340986,1740435041299,-3413.72,0.00013698,2]
[354340987,1740435041308,-500.0,0.00013698,2]
[354340988,1740435041319,-500.0,0.00013698,2]
[354340989,1740435041328,-500.0,0.00013698,2]
[354340990,1740435041338,-500.0,0.00013698,2]
[354340991,1740435041348,-500.0,0.00013698,2]
[354340992,1740435041358,-500.0,0.00013698,2]
[354340993,1740435041367,-500.0,0.00013698,2]
[354340994,1740435041377,-500.0,0.00013698,2]
[354340995,1740435041386,-500.0,0.00013698,2]
[354340996,1740435041396,-500.0,0.00013698,2]
[354340997,1740435041406,-500.0,0.00013698,2]
[354340998,1740435041417,-500.0,0.00013698,2]
[354340999,1740435041547,-500.0,0.00013698,2]
[354341000,1740435041559,-500.0,0.00013698,2]
[354341001,1740435041569,-500.0,0.00013698,2]
[354341002,1740435041579,-506.69465261,0.00013698,2]
[354341003,1740435041589,-500.0,0.00013698,2]
[354341004,1740435041599,-500.0,0.00013698,2]
[354341005,1740435041609,-500.0,0.00013698,2]
[354341006,1740435041619,-666.01,0.00013698,2]
[354341007,1740435041629,-501.46285124,0.00013698,2]
[354341008,1740435041640,-500.0,0.00013698,2]
[354341009,1740435041650,-500.0,0.00013698,2]
[354341010,1740435041661,-519.6055751,0.00013698,2]
[354341011,1740435041672,-500.0,0.00013698,2]
[354341012,1740435041682,-500.0,0.00013698,2]
[354341013,1740435041691,-2633.2,0.00013698,2]
[354341014,1740435041701,-506.71199551,0.00013698,2]
[354341015,1740435041711,-1856.81,0.00013698,2]
[354341016,1740435041721,-500.0,0.00013698,2]
[354341017,1740435041731,-501.45141362,0.00013698,2]
[354341018,1740435041740,-384.1121605,0.00013698,2]
[354341019,1740435041750,-500.0,0.00013698,2]
[354341020,1740435041760,-500.0,0.00013698,2]
[354341021,1740435041770,-500.0,0.00013698,2]
[354341022,1740435041780,-500.0,0.00013698,2]